[Event "European Women-ch 2023"]
[Site "Petrovac"]
[Date "2023.03.18"]
[Round "1.11"]
[White "Balajayeva, Khanim"]
[Black "Berke, Ana"]
[Result "1/2-1/2"]
[ECO "B36"]
[WhiteElo "2372"]
[BlackElo "2107"]
[Annotator "TA"]
[PlyCount "56"]
[EventDate "2023.03.15"]
[EventType "swiss"]
[EventCountry "MNE"]
[SourceTitle "playchess.com"]
[Source "ChessBase"]
[SourceQuality "1"]
[TimeControl "40/5400+30:1800+30"]

{[%evp 22,56,44,35,43,41,43,36,37,61,47,27,70,42,70,75,78,73,75,85,100,7,11,12,25,0,116,-11,7,0,122,-14,0,0,126,-4,0]} 1. c4 {[%emt 0:00:03]} c5 {[%emt 0:00:22]} 2. Nf3 {[%emt 0:00:15]} Nc6 {[%emt 0:00:15]} 3. d4 {[%emt 0:00:11]} cxd4 {[%emt 0:00:14]} 4. Nxd4 {[%emt 0:00:02]} Nf6 {[%emt 0:00:36]} 5. Nc3 {[%emt 0:00:11]} d6 {[%emt 0:00:22]} 6. e4 {[%emt 0:00:57]} g6 {[%emt 0:01:51]} 7. Be2 {[%emt 0:01:12]} Nxd4 {[%emt 0:00:13]} 8. Qxd4 {[%emt 0:00:06]} Bg7 {[%emt 0:00:04]} 9. Be3 {[%emt 0:02:03]} O-O {[%emt 0:00:41]} 10. Qd2 {[%emt 0:00:28]} Be6 {[%emt 0:00:56] 10...Be6 has lost popularity.} 11. Rc1 {[%emt 0:01:08]} a6 {[%emt 0:05:17]} 12. f3 {[%emt 0:03:29]} Qa5 {[%emt 0:02:53] B36: Sicilian: Maroczy Bind: Gurgenidze System.} 13. Nd5 {[%emt 0:06:49]} Qxd2+ {[%emt 0:05:59]} 14. Kxd2 {[%emt 0:03:10] [#]} Nxd5 $146 {[%emt 0:03:21] White is slightly better.} ({Predecessor:} 14... Bxd5 15. cxd5 Rfc8 16. b4 Nd7 17. a4 Kf8 18. a5 Ke8 19. f4 Kd8 20. Bg4 Rxc1 21. Rxc1 {½-½ Socko,B (2635)-Macieja,B (2617) POL-ch 65th Lublin 2008 (5)}) 15. cxd5 {[%emt 0:02:05]} Bc8 {[%emt 0:11:33]} 16. b3 {[%emt 0:07:07]} b5 {[%emt 0:03:52]} 17. Rc7 {[%emt 0:01:58]} Re8 {[%emt 0:01:50] Black is weak on the light squares} 18. Rhc1 $36 {[%emt 0:03:00][%cal Bh1c1,Bc1c6,Bc6d6][%mdl 2080] White is on the roll.} e6 {[%emt 0:05:11]} 19. R1c6 {[%emt 0:17:17] White has more active pieces. The black rooks are badly placed.} exd5 {[%emt 0:03:45]} 20. exd5 {[%emt 0:00:07]} b4 {[%emt 0:00:49]} 21. Bf4 {[%emt 0:09:54]} (21. Rxd6 Bc3+ 22. Kd1 Be5 23. Rxc8 (23. Bc5 Bxd6 24. Bxd6 Rd8 $15) 23... Bxd6 24. Rxa8 Rxa8 $15) (21. Bd3 $16) 21... Bc3+ $11 {[%emt 0:03:13]} 22. Kd1 {[%emt 0:00:07]} Bf5 {[%emt 0:06:35]} 23. Rxd6 {[%emt 0:05:47]} (23. Rxa6 $2 Rxa6 24. Rxc3 Rxe2 $19) 23... Bb1 {[%emt 0:07:16]} (23... a5 $11 {remains equal.}) 24. Bg3 {[%emt 0:16:27]} (24. Bxa6 $2 Re1#) (24. Rxa6 $2 Rxa6 25. Rxc3 Rxa2 $19) ({White has to play} 24. Rdc6 $1 $16) 24... Re3 {[%emt 0:13:11][%mdl 1024] Black has compensation.} 25. Bf4 {[%emt 0:03:17]} (25. Bxa6 Bxa2 26. Bc4 Bb1 $15) (25. Rxa6 $2 Rae8 26. Rxc3 (26. Kc1 $2 Rxe2 27. Kxb1 Rb2+ 28. Kc1 Rxg2 $19) 26... bxc3 $19) (25. Rdc6 $11 Rae8 26. Rxc3 (26. Bxa6 $2 Re1+ {[%mdl 64] Back Rank} 27. Bxe1 Rxe1#) (26. Kc1 $2 Rxe2 27. Kxb1 Rb2+ 28. Kc1 Ree2 $19) 26... bxc3 27. Bxa6) 25... Ree8 $16 {[%emt 0:01:09] [#]} 26. Bg3 {[%emt 0:00:42]} (26. Bxa6 $2 Re1#) (26. Rxa6 $2 Rxa6 27. Rxc3 Rxa2 $19) (26. Rdc6 $1 $16) 26... Re3 {[%emt 0:04:38]} (26... Bxa2 $11 27. Bc4 (27. Bxa6 $2 Bxb3+ 28. Kc1 Bxd5 $19) 27... a5) 27. Bf4 {[%emt 0:02:25]} ({Reject} 27. Bxa6 Bxa2 28. Kc2 Bd4 $15) (27. Rxa6 $2 Rae8 28. Rxc3 (28. Kc1 $2 Rxe2 29. Kxb1 Rb2+ 30. Kc1 Rxg2 $19) 28... bxc3 $19) 27... Ree8 {[%emt 0:00:36] [#]} 28. Bg3 {[%emt 0:01:12]} (28. Bxa6 $2 Re1#) (28. Rxa6 $2 {is the wrong capture.} Rxa6 29. Rxc3 Rxa2 $19) (28. Rdc6 $1 $16) 28... Re3 {[%emt 0:00:17] Weighted Error Value: White=0.52/Black=0.17 (very precise)} (28... Bxa2 $5 29. Bc4 $8 (29. Bxa6 $2 {loses.} Bxb3+ 30. Kc1 Bxd5 $19) 29... a5 $11) 1/2-1/2

[Event "European Women-ch 2023"]
[Site "Petrovac"]
[Date "2023.03.18"]
[Round "1.11"]
[White "Sliwicka, Alicja"]
[Black "Kostina, Veronika"]
[Result "1-0"]
[ECO "B33"]
[WhiteElo "2272"]
[BlackElo "1855"]
[Annotator "TA"]
[PlyCount "51"]
[EventDate "2023.03.15"]
[EventType "swiss"]
[EventCountry "MNE"]
[SourceTitle "playchess.com"]
[Source "ChessBase"]
[SourceQuality "1"]
[TimeControl "40/5400+30:1800+30"]

{[%evp 15,51,34,38,19,14,0,23,13,17,16,37,39,37,38,43,19,128,132,163,163,165,143,516,516,1084,1071,29990,1416,29992,2385,2385,7,2495,748,727,35,335,-1587]} 1. e4 {[%emt 0:00:06]} c5 {[%emt 0:00:07]} 2. Nf3 {[%emt 0:00:10]} Nc6 {[%emt 0:00:08]} 3. d4 {[%emt 0:00:09]} cxd4 {[%emt 0:00:07]} 4. Nxd4 {[%emt 0:00:06]} Qb6 {[%emt 0:00:04]} 5. Nb3 {[%emt 0:00:20]} Nf6 {[%emt 0:00:20]} 6. Nc3 {[%emt 0:00:44]} e6 {[%emt 0:00:17]} 7. Bd3 {[%emt 0:01:38]} a6 {[%emt 0:01:04]} 8. O-O {[%emt 0:04:12]} d6 {[%emt 0:03:13]} 9. Kh1 {[%emt 0:04:21] B33: Sicilian: Pelikan and Sveshnikov Variations.} Qc7 {[%emt 0:02:32]} 10. f4 {[%emt 0:00:56]} b5 {[%emt 0:03:15]} 11. Qf3 {[%emt 0:00:25][%cal Oe4e5] White has an edge.} Bb7 {[%emt 0:00:56]} 12. Bd2 {[%emt 0:00:48] [#]} Rc8 $146 {[%emt 0:02:40]} ({Predecessor:} 12... Be7 13. Rae1 b4 14. Ne2 g6 15. Qh3 h5 16. c3 a5 17. Nbd4 Nd8 18. Ng1 Ng4 {0-1 Castellanos Rodriguez,R (2509)-Salgado Lopez,I (2614) ESP-chT CECLUB Honor 2013 (6.4)}) 13. Rae1 {[%emt 0:01:19]} Be7 {[%emt 0:03:03]} 14. Qh3 {[%emt 0:10:01]} b4 {[%emt 0:14:10]} 15. Ne2 {[%emt 0:01:01]} e5 {[%emt 0:02:39]} (15... O-O $11 {remains equal.}) 16. Ng3 $16 {[%emt 0:04:24] White is more active.} Qd7 {[%emt 0:05:25]} 17. Nf5 $1 {[%emt 0:06:32]} O-O {[%emt 0:07:00]} 18. fxe5 {[%emt 0:01:58]} dxe5 {[%emt 0:01:36][%mdl 8192]} (18... Nxe5 $16 {is a better chance.} 19. Nbd4 (19. Bxb4 Rfe8 $16) (19. Qg3 Nh5 $16) 19... Rfe8 20. Nxe7+ (20. Bxb4 Bf8 $16) 20... Rxe7) 19. Bh6 $18 {[%emt 0:02:37]} Rfd8 {[%emt 0:09:06]} (19... g6 $142 20. Nxe7+ {[%mdl 64] Discovered Attack} Qxe7) 20. Bxg7 {[%emt 0:01:19] Strongly threatening Qg3.} Ne8 {[%emt 0:01:24]} 21. Qg3 {[%emt 0:02:31]} (21. Nh6+ $142 Kxg7 22. Rxf7+ Kg6 23. Qg3+ Kxh6 24. Qg8 Bh4 25. Ref1 Bf2 26. R1xf2) 21... h5 {[%emt 0:02:15]} 22. Nh6+ {[%emt 0:06:01]} (22. Bc4 $142 Kh7 23. Bxf7 Qe6 24. Bxe6 Rd6 25. Bg8+ {[%mdl 64] Decoy} Kxg8 26. Nxe7+ Kh7 27. Rf7 Nxe7 28. Bxe5+ Kh6 29. Bf4#) 22... Kh7 {[%emt 0:00:11] [#]} 23. Rf3 $2 {[%emt 0:00:23]} f5 $2 {[%mdl 8192] [#]} (23... Nxg7 $2 24. Rxf7 (24. Nxf7 Rf8 $11) 24... Rg8 25. Nf5 $18) (23... h4 $11 24. Qf2 Nxg7 25. Nxf7 Rf8) 24. Rxf5 $1 {[%emt 0:00:30]} Qe6 {[%emt 0:16:47]} (24... Nxg7 25. Rf7) 25. Rf7 $2 {[%emt 0:01:10]} (25. Bxe5 $18 h4 26. Qf4 Nxe5 27. Rxe5) 25... Rxd3 $4 {[%emt 0:09:02][%mdl 8192] [#]} (25... h4 $14 26. Bxe5+ (26. Rxe7 Qxe7 27. Nf5 hxg3 $17) 26... Qxf7 27. Nxf7 hxg3 28. Nxd8 Rxd8 29. Bxg3 Kg8) 26. Ref1 $4 {[%emt 0:01:14][%mdl 40960] Quite a comeback for Black. An exciting game.   Weighted Error Value: White=0.84/Black=1.52. Loss on time!?} 1-0

[Event "European Women-ch 2023"]
[Site "Petrovac"]
[Date "2023.03.18"]
[Round "1.12"]
[White "Zherebtsova, Alexandra"]
[Black "Badelka, Olga"]
[Result "0-1"]
[ECO "D26"]
[WhiteElo "2155"]
[BlackElo "2428"]
[Annotator "TA"]
[PlyCount "114"]
[EventDate "2023.03.15"]
[EventType "swiss"]
[EventCountry "MNE"]
[SourceTitle "playchess.com"]
[Source "ChessBase"]
[SourceQuality "1"]
[TimeControl "40/5400+30:1800+30"]

{[%evp 11,114,8,19,0,2,0,0,-10,0,0,3,5,6,-7,0,-17,-15,-18,-3,-23,-23,-48,-37,-57,-60,-45,-48,-90,-84,-81,-93,-79,-82,-90,-93,-101,-102,-106,-98,-105,-115,-133,-123,-129,-96,-154,-111,-142,-145,-176,-181,-193,-188,-183,-190,-195,-148,-159,-173,-170,-170,-162,-90,-144,-129,-147,-140,-160,-89,-83,-63,-88,-59,-151,-147,-145,-138,-247,-252,-312,-284,-236,-233,-415,-406,-904,-908,-878,-877,-745,-579,-579,-343,-767,-768,-5410,-5410,-5297,-1356,-29988,-29989,-29989,-29990,-29990,-29991]} 1. c4 {[%emt 0:01:18]} Nf6 {[%emt 0:00:24]} 2. Nf3 {[%emt 0:00:05]} e6 {[%emt 0:00:19]} 3. Nc3 {[%emt 0:00:34]} d5 {[%emt 0:00:09]} 4. e3 {[%emt 0:00:46]} dxc4 {[%emt 0:02:21]} 5. Bxc4 {[%emt 0:02:06]} a6 {[%emt 0:00:05]} 6. d4 {[%emt 0:05:19]} b5 {[%emt 0:00:11]} 7. Be2 {[%emt 0:01:45] D26: Queen's Gambit Accepted: 4 e3 e6 5 Bxc5 c5 sidelines.} Bb7 {[%emt 0:00:30]} 8. a3 {[%emt 0:03:59]} c5 {[%emt 0:00:16]} 9. O-O {[%emt 0:04:06] The position is equal.} Nc6 {[%emt 0:08:42]} 10. dxc5 {[%emt 0:01:53]} Bxc5 {[%emt 0:00:07][%cal Bf8c5,Bc5d6,Bd6e5][%mdl 32]} 11. b4 {[%emt 0:00:50]} Bd6 {[%emt 0:00:25]} 12. Bb2 {[%emt 0:00:42]} O-O {[%emt 0:00:38]} 13. Qb3 {[%emt 0:17:02]} Qe7 {[%emt 0:00:36]} 14. Rfd1 {[%emt 0:01:08]} Rfd8 {[%emt 0:03:38] [#]} 15. Rd2 $146 {[%emt 0:02:48]} ({Predecessor:} 15. Rac1 Rac8 16. Ba1 Ne5 17. Nxe5 Bxe5 18. f4 Bb8 19. Bf3 Bxf3 20. gxf3 Rxd1+ 21. Rxd1 {0-1 Singh,D (2344)-Shyam,S (2457) Mumbai Mayors Cup 4th 2011 (9)}) 15... Ne5 {[%emt 0:10:08] White must now prevent ...Nxf3+.} 16. Nxe5 {[%emt 0:06:57]} Bxe5 {[%emt 0:00:10][%mdl 64] Discovered Attack} 17. Rad1 {[%emt 0:07:30]} Rxd2 {[%emt 0:00:38]} 18. Rxd2 {[%emt 0:00:04]} Rc8 {[%emt 0:06:03]} 19. Nb1 {[%emt 0:11:32]} Bd5 {[%emt 0:04:14]} 20. Qd1 {[%emt 0:00:13]} Bxb2 {[%emt 0:04:19]} 21. Rxb2 {[%emt 0:00:07]} Qc7 {[%emt 0:00:19] Repels Rc2} 22. Rd2 {[%emt 0:08:21]} g6 {[%emt 0:07:27]} 23. f3 {[%emt 0:06:17] Prevents Ne4} Kg7 $36 {[%emt 0:03:31][%mdl 2048] White is under strong pressure.} 24. Bd3 {[%emt 0:03:14]} Qb6 {[%emt 0:05:46]} 25. Kf2 {[%emt 0:00:44]} h5 {[%emt 0:01:24][%cal Bh7h5,Bh5h4,Bh4h3][%mdl 32]} 26. Qe2 {[%emt 0:02:11]} h4 {[%emt 0:01:28]} 27. Rc2 {[%emt 0:00:51]} Rd8 {[%emt 0:00:13] ...Qd6 is the strong threat.} 28. Nc3 {[%emt 0:01:52]} (28. Rd2 $142) 28... Bb7 {[%emt 0:01:12] Hoping for ...Qd6.} 29. Kg1 {[%emt 0:07:26] [#]} h3 $1 {[%emt 0:13:18][%mdl 512]} 30. Ne4 {[%emt 0:02:37] Prevents Qd6.} (30. Be4 Nxe4) 30... Bxe4 {[%emt 0:02:43]} 31. Bxe4 {[%emt 0:00:07]} hxg2 $1 {[%emt 0:00:14]} 32. Kxg2 {[%emt 0:00:55]} Qd6 $1 {[%emt 0:02:00]} 33. Bc6 {[%emt 0:00:59]} Qe5 {[%emt 0:02:00]} (33... Rh8 34. f4) (33... Rc8 $19 34. Bb7 Rxc2 35. Qxc2 Qb6) 34. f4 {[%emt 0:00:24]} Qa1 {[%emt 0:00:09]} 35. Ra2 {[%emt 0:00:26]} Qc3 {[%emt 0:09:53]} 36. Bf3 {[%emt 0:00:20]} Nd5 {[%emt 0:04:09]} ({Black should play} 36... Rd6 $19 37. Kf2 Rd3) 37. Bxd5 {[%emt 0:00:27]} (37. Kf2 $142) 37... Rxd5 $17 {[%emt 0:00:04][%mdl 4096] Endgame KQR-KQR} 38. Kf3 {[%emt 0:00:56]} Rd3 {[%emt 0:00:34] aiming for ...Qd4.} 39. Kf2 {[%emt 0:00:08]} Kf6 {[%emt 0:03:22]} (39... e5 $142 {Strongly threatening ...exf4.} 40. fxe5 Qc4) 40. h4 {[%emt 0:00:00]} Rd5 {[%emt 0:00:00]} 41. Kf3 {[%emt 0:14:53]} Qc6 {[%emt 0:06:42]} 42. Kg3 {[%emt 0:02:08] [#]} (42. Qc2 $1 $15 Qxc2 43. Rxc2) 42... Qc1 $1 {[%emt 0:00:21]} 43. Kg2 {[%emt 0:02:05]} Kg7 {[%emt 0:01:47] Black has more active pieces.} 44. Rb2 {[%emt 0:06:23]} (44. Qb2+ $17 Qxb2+ 45. Rxb2) 44... Rd1 {[%emt 0:08:38] ...Rg1+ would be deadly.} 45. Rc2 {[%emt 0:02:56] [#]} Qb1 {[%emt 0:00:06]} (45... Qxa3 $2 46. Qxd1 Qxe3 47. Qf3 $18) ({Inferior is} 45... Rg1+ 46. Kf2 Qb1 47. Rb2 $15) 46. Qf2 {[%emt 0:04:59]} ({Reject} 46. Kf3 Rh1 47. Qd2 e5 48. fxe5 Rxh4 $19) 46... Rh1 {[%emt 0:00:37]} 47. e4 $2 {[%emt 0:00:41]} (47. Rc5 {was worth a try.}) 47... Rxh4 $19 {[%emt 0:02:18][%mdl 64] Deflection} ({Stronger than} 47... Qd1 48. Rd2 Qb1 49. Re2 $17) 48. Kg3 {[%emt 0:00:17]} (48. Qxh4 $142 Qxc2+ 49. Kg1) 48... Rh5 {[%emt 0:01:39]} 49. Re2 {[%emt 0:01:00]} Qh1 {[%emt 0:03:04][%csl Gh5][%cal Rh1h3]} 50. Qg2 {[%emt 0:00:08] Against Qh3+} Qh4+ {[%emt 0:01:48]} 51. Kf3 {[%emt 0:00:04]} Qh3+ {[%emt 0:00:10]} 52. Kf2 $2 {[%emt 0:01:19]} (52. Qxh3 Rxh3+ 53. Kg4 Rxa3 54. e5) 52... Qxa3 {[%emt 0:00:24]} 53. f5 {[%emt 0:00:13]} exf5 {[%emt 0:00:16]} 54. e5 {[%emt 0:00:08]} Rh4 {[%emt 0:02:54] ( -> ...Rf4+)} 55. e6 {[%emt 0:00:28]} Rf4+ {[%emt 0:00:14] Black mates.} 56. Kg1 {[%emt 0:00:07]} Qc1+ {[%emt 0:00:06]} 57. Kh2 {[%emt 0:00:16]} Rh4+ {[%emt 0:00:05] Weighted Error Value: White=0.61/Black=0.27 (precise)} 0-1

[Event "European Women-ch 2023"]
[Site "Petrovac"]
[Date "2023.03.18"]
[Round "1.12"]
[White "Makropoulou, Marina"]
[Black "Sargsyan, Anna M."]
[Result "1-0"]
[ECO "B18"]
[WhiteElo "2102"]
[BlackElo "2371"]
[Annotator "TA"]
[PlyCount "55"]
[EventDate "2023.03.15"]
[EventType "swiss"]
[EventCountry "MNE"]
[SourceTitle "playchess.com"]
[Source "ChessBase"]
[SourceQuality "1"]
[TimeControl "40/5400+30:1800+30"]

{[%evp 11,55,12,6,11,10,-12,15,16,15,-12,-23,-32,-29,-78,-43,-49,-46,-75,-53,-49,-28,-34,-34,-37,-37,-64,0,0,122,0,63,35,44,63,57,50,52,43,64,53,89,91,350,326,464,452]} 1. e4 {[%emt 0:00:07]} c6 {[%emt 0:00:45]} 2. d4 {[%emt 0:00:13]} d5 {[%emt 0:00:06]} 3. Nc3 {[%emt 0:00:36][%cal Bb1c3,Bc3e4,Be4g3][%mdl 32]} dxe4 {[%emt 0:00:07]} 4. Nxe4 {[%emt 0:00:05]} Bf5 {[%emt 0:00:06]} 5. Ng3 {[%emt 0:00:29]} Bg6 {[%emt 0:01:39]} 6. N1e2 {[%emt 0:01:52]} Nf6 {[%emt 0:00:28][%cal Oe7e5]} 7. h4 {[%emt 0:01:55] B18: Classical Caro-Kann: 4...Bf5 sidelines.} h6 $1 {[%emt 0:00:11][%cal Oe7e5]} 8. c3 {[%emt 0:15:55]} e6 {[%emt 0:00:13]} 9. Nf4 {[%emt 0:01:51] The position is equal.} Bh7 {[%emt 0:00:08]} 10. Qb3 {[%emt 0:00:58] 10.Ngh5 is becoming the main line.} Qc7 {[%emt 0:00:21] [#]} 11. Be2 $146 {[%emt 0:11:25]} ({Predecessor:} 11. Nfh5 Nbd7 12. Bf4 Qb6 13. Bc4 Qxb3 14. axb3 Nd5 15. Bd2 N7f6 16. b4 Bg6 17. Nf4 Nxf4 18. Bxf4 {1-0 Bigott,M (1780)-Memmesheimer,T (1583) Troisdorf op  2010 (1)}) 11... Nbd7 {[%emt 0:03:18]} 12. Be3 {[%emt 0:13:07]} (12. Ngh5 $11) 12... Bd6 {[%emt 0:01:03]} (12... O-O-O $5) 13. Ngh5 {[%emt 0:00:39]} O-O {[%emt 0:05:18]} 14. O-O-O {[%emt 0:18:12]} a5 {[%emt 0:13:02]} 15. Bd3 {[%emt 0:08:26]} Nd5 {[%emt 0:04:58][%cal Rd6f4]} (15... Bxd3 {simplifies} 16. Nxf6+ Nxf6 17. Nxd3 a4) 16. Bxh7+ {[%emt 0:01:45]} Kxh7 {[%emt 0:00:07]} 17. Qc2+ {[%emt 0:00:25]} g6 {[%emt 0:01:15][%cal Rd5f4]} 18. Nxd5 {[%emt 0:00:31]} exd5 {[%emt 0:02:30]} ({Black should play} 18... cxd5 $15 19. g3 Kg8) 19. g3 $11 {[%emt 0:00:42] And now Nf4 would win.} a4 {[%emt 0:01:33] [#]} (19... Rfe8 $11) 20. Rhe1 {[%emt 0:04:54]} ({White has to play} 20. Nf4 $1 $16 {Hoping for h5.} Kh8 21. Nd3) 20... Qd8 {[%emt 0:24:22]} (20... Rfe8 $11) 21. Nf4 {[%emt 0:02:17] Strongly threatening h5.} (21. Bf4 {feels hotter.} Nf6 22. Nxf6+ Qxf6 23. Bxd6 Qxd6 24. Re5) 21... Kh8 {[%emt 0:11:46]} 22. Nd3 {[%emt 0:00:22]} Kg7 {[%emt 0:00:59]} 23. Qd2 {[%emt 0:00:42]} Rh8 {[%emt 0:00:13]} 24. Bf4 {[%emt 0:00:51]} Bxf4 {[%emt 0:06:49]} 25. Qxf4 {[%emt 0:00:33]} Qf6 {[%emt 0:02:36]} 26. Qc7 {[%emt 0:02:42][%csl LRb7,LRd7] White is more active.} Qf5 {[%emt 0:04:33][%mdl 8192] [#]} (26... Rhd8 $16 {keeps fighting.}) 27. Re7 {[%emt 0:02:10]} (27. Qxb7 a3 $14) 27... Rad8 {[%emt 0:02:27]} (27... Rhd8 $142 28. g4 {[%mdl 64] Deflection} (28. Qxb7 Rab8 $16) 28... Qf6 29. Rxd7 Rac8) 28. g4 {[%emt 0:01:27][%mdl 64] Deflection.   Weighted Error Value: White=0.19 (very precise) /Black=0.46} ({Not} 28. Qxb7 a3 $16) 1-0

[Event "European Women-ch 2023"]
[Site "Petrovac"]
[Date "2023.03.18"]
[Round "1.12"]
[White "Bakalarz, Grazyna"]
[Black "Zhapova, Yana"]
[Result "0-1"]
[ECO "B13"]
[WhiteElo "1847"]
[BlackElo "2269"]
[Annotator "TA"]
[PlyCount "58"]
[EventDate "2023.03.15"]
[EventType "swiss"]
[EventCountry "MNE"]
[SourceTitle "playchess.com"]
[Source "ChessBase"]
[SourceQuality "1"]
[TimeControl "40/5400+30:1800+30"]

{[%evp 17,58,29,33,4,6,6,5,5,6,-2,5,6,7,4,7,7,14,0,0,0,19,0,8,0,4,0,0,-3,-12,-24,-12,-12,-10,-102,-114,-108,-107,-454,-325,-1450,-1385,-29982,-29983]} 1. e4 {[%emt 0:00:11]} c6 {[%emt 0:00:43]} 2. d4 {[%emt 0:00:20]} d5 {[%emt 0:00:16]} 3. exd5 {[%emt 0:00:22]} cxd5 {[%emt 0:00:11]} 4. Bd3 {[%emt 0:00:10]} Nc6 {[%emt 0:00:20]} 5. c3 {[%emt 0:00:16]} Nf6 {[%emt 0:00:32]} 6. Bf4 {[%emt 0:00:24]} Bg4 {[%emt 0:01:21]} 7. Qb3 {[%emt 0:01:44]} Qd7 {[%emt 0:00:40]} 8. Nd2 {[%emt 0:00:38][%cal Bb1d2,Bd2f3,Bf3h4,Bh4g2,Bg2e3][%mdl 32]} e6 {[%emt 0:00:45]} 9. Ngf3 {[%emt 0:00:24]} Bd6 $1 {[%emt 0:01:14][%mdl 4] is now more promising than 9...Bxf3.} 10. Ne5 {[%emt 0:02:05] B13: Caro-Kann: Exchange Variation and Panov-Botvinnik Attack.} Qc7 {[%emt 0:03:54][%cal Rc6e5]} 11. Nxg4 {[%emt 0:05:38]} Bxf4 {[%emt 0:05:37]} 12. Nxf6+ {[%emt 0:00:27] The position is equal.} gxf6 {[%emt 0:00:11]} 13. Nf3 {[%emt 0:01:30]} O-O-O {[%emt 0:07:13]} 14. g3 {[%emt 0:02:22]} Bd6 {[%emt 0:04:11]} 15. O-O-O {[%emt 0:06:15]} Kb8 {[%emt 0:04:38]} 16. Kb1 {[%emt 0:03:51] [#]} Ne7 $146 {[%emt 0:04:49]} ({Predecessor:} 16... f5 17. Nh4 Na5 18. Qc2 Rc8 19. f4 Ka8 20. Nf3 Rb8 21. Qe2 Rhc8 22. Ne5 a6 {1-0 Nasuta,G (2534)-Vazquez,G (2501) Titled Tuesday intern op 1st Oct blitz 2019 (4)}) 17. Nh4 {[%emt 0:07:36]} Ng6 {[%emt 0:09:45]} 18. Ng2 {[%emt 0:06:38]} Be7 {[%emt 0:05:06]} 19. c4 {[%emt 0:07:55]} dxc4 {[%emt 0:00:59]} 20. Bxc4 {[%emt 0:03:00]} Rd6 {[%emt 0:01:56]} 21. Ne3 {[%emt 0:01:27]} (21. d5 {is interesting.} Ne5 22. Be2 Rb6 23. Qc2) 21... f5 {[%emt 0:05:30]} 22. d5 {[%emt 0:04:58][%cal Rd5e6]} Rb6 {[%emt 0:04:51]} 23. Qc3 {[%emt 0:04:42]} Rc8 {[%emt 0:03:39] Black wants to play ...f4.} 24. dxe6 {[%emt 0:06:18]} fxe6 {[%emt 0:00:19] White should prevent ...Ne5.} 25. Qg7 {[%emt 0:01:12]} (25. f4 $1 $11) 25... f4 $36 {[%emt 0:02:43][%mdl 2048] Black has strong initiative.} 26. gxf4 {[%emt 0:10:47]} Qxf4 {[%emt 0:00:07] [#] Hoping for ...Bf6.} 27. Bb3 $2 {[%emt 0:05:16][%mdl 8192]} (27. Qd4 $17 {was the crucial defense.}) 27... Qxf2 {[%emt 0:04:09] aiming for ...Bf6.} 28. Rd3 $2 {[%emt 0:08:29]} (28. Nc4 Bf6 29. Rhf1 Qxf1 30. Rxf1 Bxg7 31. Nxb6 axb6 32. Bxe6) 28... Bf6 $19 {[%emt 0:00:31][%csl Gf6][%cal Rf2b2]} 29. Nd1 {[%emt 0:02:55] White is weak on the dark squares} Qf4 {[%emt 0:00:19] Weighted Error Value: White=0.98/Black=0.12 (very precise)} 0-1

[Event "European Women-ch 2023"]
[Site "Petrovac"]
[Date "2023.03.18"]
[Round "1.13"]
[White "Fataliyeva, Ulviyya"]
[Black "Ivekovic, Tihana"]
[Result "1-0"]
[ECO "A13"]
[WhiteElo "2427"]
[BlackElo "2132"]
[Annotator "TA"]
[PlyCount "57"]
[EventDate "2023.03.15"]
[EventType "swiss"]
[EventCountry "MNE"]
[SourceTitle "playchess.com"]
[Source "ChessBase"]
[SourceQuality "1"]
[TimeControl "40/5400+30:1800+30"]

{[%evp 11,57,0,8,0,0,7,24,0,0,0,0,7,29,35,45,49,52,31,20,14,18,12,28,-1,-1,-15,33,36,230,-79,-79,-60,0,-46,258,257,252,245,488,494,881,855,1485,1357,1488,1479,1437,1372]} 1. Nf3 {[%emt 0:00:03]} Nf6 {[%emt 0:00:05]} 2. c4 {[%emt 0:00:07]} e6 {[%emt 0:00:05]} 3. e3 {[%emt 0:00:25]} d5 {[%emt 0:00:22]} 4. b3 {[%emt 0:00:50]} Be7 {[%emt 0:00:45]} 5. Nc3 {[%emt 0:00:26]} O-O {[%emt 0:00:18]} 6. Bb2 {[%emt 0:00:05]} b6 {[%emt 0:02:06]} 7. cxd5 {[%emt 0:00:09] A13: English Opening: 1...e6.} exd5 {[%emt 0:00:05]} 8. d4 {[%emt 0:00:11]} Bb7 {[%emt 0:01:54]} 9. Rc1 {[%emt 0:01:54] White has an edge.} Nbd7 {[%emt 0:00:42]} 10. Bd3 {[%emt 0:00:09]} Re8 {[%emt 0:02:19]} 11. O-O {[%emt 0:00:24]} a6 {[%emt 0:03:59]} 12. Ne5 {[%emt 0:00:54]} b5 {[%emt 0:19:32]} 13. Ne2 {[%emt 0:06:24]} Bd6 {[%emt 0:15:02][%cal Rd7e5]} 14. f4 {[%emt 0:02:14]} c5 {[%emt 0:05:36][%cal Bc7c5,Bc5c4][%mdl 32] [#]} 15. Ng3 $146 {[%emt 0:01:53] Black must now prevent Nxd7.} ({Predecessor:} 15. dxc5 Nxc5 16. Ng3 Nxd3 17. Qxd3 Rc8 18. Nf5 Bf8 19. Qd4 Re6 20. Rxc8 Bxc8 21. Qa7 {½-½ Belov,I (2439)-Miroshnichenko,E (2646) RUS-chT2 Sochi 2007 (2)}) 15... c4 {[%emt 0:05:21]} 16. Bb1 {[%emt 0:01:23]} g6 {[%emt 0:04:26][%cal Bg7g6,Bg6g5][%mdl 32]} 17. h4 {[%emt 0:09:26]} Rc8 {[%emt 0:08:46]} 18. h5 {[%emt 0:01:56]} Kg7 {[%emt 0:01:13]} (18... Rc7 $11 {is superior.}) 19. Qf3 $14 {[%emt 0:10:48]} Ba8 $2 {[%emt 0:03:05]} (19... Rc7 $14) 20. f5 $2 {[%emt 0:10:14] [#]} (20. hxg6 $18 {aiming for Nf5+.} hxg6 21. f5 Nxe5 22. dxe5 Bxe5 23. Bxe5 Rxe5 24. Qf4) 20... g5 $1 $17 {[%emt 0:13:10][%cal Rd7e5]} 21. h6+ {[%emt 0:00:06]} Kg8 {[%emt 0:00:10][%cal Rd7e5]} 22. Nh5 $1 {[%emt 0:12:52]} ({Wrong is} 22. bxc4 $2 dxc4 23. Be4 Bxe5 24. dxe5 Nxe5 25. Bxe5 Rxe5 26. Bxa8 Rxa8 $17) 22... Bf8 $2 {[%emt 0:01:38][%mdl 8192] [#]} (22... Nxe5 $15 23. dxe5 Rxe5) 23. Nxd7 $1 $18 {[%emt 0:02:15]} Nxd7 {[%emt 0:00:06]} 24. f6 $40 {[%emt 0:00:52][%mdl 128] Qf5 would be deadly. White goes for the king.} Bxh6 $2 {[%emt 0:00:08]} (24... Bd6 25. Ng7 Nf8) 25. Ba3 {[%emt 0:05:56] White is clearly winning.} ({Less strong is} 25. Qf5 Nf8 $16) 25... Ne5 {[%emt 0:06:37]} (25... Re4 $142 26. Be7 Qb6 27. Bxe4 dxe4) 26. dxe5 {[%emt 0:00:58]} d4 {[%emt 0:00:04]} 27. Qf5 {[%emt 0:03:18][%csl Gb1][%cal Rf5h7]} d3 {[%emt 0:00:06]} 28. bxc4 {[%emt 0:01:02]} bxc4 {[%emt 0:00:08] [#]} 29. Rxc4 $3 {[%emt 0:00:59][%mdl 576] Remove Defender. An entertaining game by Fataliyeva.   Weighted Error Value: White=0.26 (precise) /Black=0.62} 1-0